{"text_format":"1","workbook":"xlsx","n_sheets":6,"sheets":["KULLANMA KILAVUZU","MERA VERİ GİRİŞİ","MERA YEM TÜKETİM","KAYIT","ARŞİV","ARŞİV ÇIKTI"],"not_rendered":{"charts":0,"images":0,"macros":1,"external_links":0,"defined_names":28,"comments":0,"pivot_tables":0},"unopened":[],"bounds":{"document_bytes":16777216,"sheet_cells":100000,"rows_first":2000,"rows_last":500,"rows_between":2000,"halvings":0,"cell_chars":16384,"cell_head_chars":4096},"cells_cut":0,"cells_raw":0,"read":"whole","date_system":"1900"}

{"sheet":"KULLANMA KILAVUZU","index":0,"n_rows":0,"n_cols":0,"rows_kept":0,"cut":false,"hidden":false,"merged":[]}

{"sheet":"MERA VERİ GİRİŞİ","index":1,"n_rows":33,"n_cols":31,"rows_kept":33,"cut":false,"hidden":false,"merged":[[6,9,6,13],[3,16,6,17],[8,19,8,20]]}
[null,null,null,null,null,null,null,null,null,"\n           "]
[null,"ÇOK İYİ","İYİ","ORTA","ZAYIF",null,null,null,null,"MERA  NO","MERA DURUM SINIFI","YAĞIŞ KUŞAĞI","TABLOYA ESAS MERA YEŞİL OT VERİMİ (KG/DA)","KULLANICI TARAFINDAN BELİRLENEN MERA  YEŞİL OT VERİMİ  (KG/DA)","MERA ALANI (DA)","MERA TOPLAM YAŞ OT ÜRETİMİ (TON)","FAYDALANMA ORANI","RAPOR HAZIRLAMA TARİHİ","f(metanın üniform otlatılmasını engelleyen faktörler)","RAPORU HAZIRLAYANLAR","MERA  ORTALAMA YAŞ OT VERİMİ (KG/DA)","OTLATMA DERECESİ","PUAN","KURU OT ÜRETİM FARKI (TON)",null,"ÜRÜN ADI","EKİLEN ALAN (DA)","VERİM (KG/DA)","KURU MADDE ORANI (%)",null,"TOPLAM HAVADA KURU KABAYEM (TON)"]
["650-800",1800,1352,900,452,"SATIR",{"$f":"MATCH(L3,A3:A6,0)","v":2},"SÜTUN",{"$f":"MATCH(K3,B2:E2,0)","v":1},1,"ÇOK İYİ","500-650",{"$f":"INDEX($B$3:$E$6,G3,I3)","v":1440},1440,3000,{"$f":"O3*N3/1000","v":4320},0.5,"2016-08-10",1,"Mustafa UZUN",{"$f":"(N3*O3+N4*O4+N5*O5+N6*O6)/(O3+O4+O5+O6)","v":890.52631578947364},"çok hafif otlatma",0.6,{"$f":"U19-U16","v":0},null,"Yonca",300,1100,0.85,null,{"$f":"AA3*AB3*AC3/0.85","v":330000}]
["500-650",1440,1080,720,360,"SATIR",{"$f":"MATCH(L4,A3:A6,0)","v":2},"SÜTUN",{"$f":"MATCH(K4,B2:E2,0)","v":2},2,"İYİ","500-650",{"$f":"INDEX($B$3:$E$6,G4,I4)","v":1080},1080,6000,{"$f":"O4*N4/1000","v":6480},{"$f":"IF(U20<W3,V3,IF(AND(U20=W3),V3,IF(AND(U20=W4),V4,IF(AND(U20<W4,U20>W3),V4,IF(AND(U20<W6,U20>W4),V5,IF(AND(U20=W6),V5,IF(AND(U20<W7,U20>W6),V6,IF(AND(U20=W7),V7,IF(AND(U20>W7),V7,0)))))))))","v":"normal otlatma"},null,1,null,null,"hafif otlatma",0.9,null,null,"Korunga",450,400,0.85,null,{"$f":"AA4*AB4*AC4/0.85","v":180000}]
["350-500",1080,812,540,272,"SATIR",{"$f":"MATCH(L5,A3:A6,0)","v":2},"SÜTUN",{"$f":"MATCH(K5,B2:E2,0)","v":3},3,"ORTA","500-650",{"$f":"INDEX($B$3:$E$6,G5,I5)","v":720},720,7000,5040,null,null,1,null,null,"normal otlatma",1,null,null,"Fiğ",150,600,0.85,null,90000]
["200-350",720,540,360,180,"SATIR",{"$f":"MATCH(L6,A3:A6,0)","v":2},"SÜTUN",{"$f":"MATCH(K6,B2:E2,0)","v":4},4,"ZAYIF","500-650",{"$f":"INDEX($B$3:$E$6,G6,I6)","v":360},360,3000,1080,null,null,1,null,null,"ağır otlatma",1.05,null,null,"Mısır slajı",178.4816785714286,5000,0.35,null,367462.2794117647]
["TOPLAM",null,null,null,null,null,null,null,null,"TOPLAM",null,null,null,null,{"$f":"SUM(O3:O6)","v":19000},{"$f":"SUM(P3:P6)","v":16920},null,null,null,null,null,"aşırı otlatma",1.4,null,null,"Çayır otu",400,400,0.85,null,160000]
[null,null,null,null,null,null,null,null,null,null,null,null,null,null,null,null,null,null,null,null,null,null,null,null,null,"Buğday samanı",400,100,0.9,null,42352.941176470587]
[null,null,null,null,null,null,null,null,null,"HAYVAN TÜRÜ/IRKI","YAŞ(AY)","OTLAYAN HAYVAN SAYISI (BAŞ)","MERADA OTLATMA GÜN SAYISI (GÜN)","İLKBAHAR VE ANIZ OTLATMASI SÜRESİ (GÜN)",null,"İLİ","İLÇESİ","MAHALLESİ/KÖYÜ","MERA MEVKİİ ","MERANIN MEVCUT DURUMU",null,null,null,null,null,"Arpa samanı",100,120,0.88,null,12423.529411764706]
[null,null,null,null,null,null,null,null,null,"SIĞIR (KÜLTÜR)","İNEK",50,120,60,null,"ERZURUM","OLTU","DAMARLITAŞ",null,"İLİ",{"$f":"P10","v":"ERZURUM"},null,null,null,null,null,null,null,null,null,0]
[null,null,null,null,null,null,null,null,null,"SIĞIR (KÜLTÜR)","DANA-DÜVE",20,120,60,null,null,null,null,null,"İLÇESİ",{"$f":"Q10","v":"OLTU"},null,null,null,null,null,null,null,null,null,0]
[null,null,null,null,null,null,null,null,null,"SIĞIR (KÜLTÜR)","BOĞA",4,120,60,null,null,null,null,null,"MAHALLESİ/KÖYÜ",{"$f":"R10","v":"DAMARLITAŞ"},null,null,null,null,null,null,null,null,null,0]
[null,null,null,null,null,null,null,null,null,"SIĞIR (MELEZ)","İNEK",470,150,50,null,null,null,null,null,"MERA MEVKİİ",{"$f":"S10","v":0},null,null,null,null,null,null,null,null,null,0]
[null,null,null,null,null,null,null,null,null,"SIĞIR (MELEZ)","DANA-DÜVE",423.04444444444488,150,50,null,null,null,null,null,"MERA ALANI (DA)",{"$f":"SUM(O3:O6)","v":19000},null,null,null,null,null,null,null,null,null,0]
[null,null,null,null,null,null,null,null,null,"SIĞIR (YERLİ)","İNEK",470,160,40,null,null,null,null,null,{"$f":"P2","v":"MERA TOPLAM YAŞ OT ÜRETİMİ (TON)"},{"$f":"(P3*S3+P4*S4+P5*S5+P6*S6)*Q3","v":8460},null,null,null,null,null,null,null,null,null,0]
[null,null,null,null,null,null,null,null,null,"SIĞIR (YERLİ)","DANA-DÜVE",426,160,40,null,null,null,null,null,"MERA TOPLAM KURU OT ÜRETİMİ (TON)",{"$f":"U15/4","v":2115},null,null,null,null,null,null,null,null,null,0]
[null,null,null,null,null,null,null,null,null,"SIĞIR (YERLİ)","ÖKÜZ",4,160,40,null,null,null,null,null,{"$f":"U2","v":"MERA  ORTALAMA YAŞ OT VERİMİ (KG/DA)"},{"$f":"U3","v":890.52631578947364},null,null,null,null,null,null,null,null,null,0]
[null,null,null,null,null,null,null,null,null,"MANDA","Dişi MANDA",15,150,40,null,null,null,null,null,"MERA DÖNEMİNDE YAŞ OT İHTİYACI (TON)",{"$f":"'MERA YEM TÜKETİM'!F3","v":8460},null,null,null,null,null,null,null,null,null,0]
[null,null,null,null,null,null,null,null,null,"MANDA","ErkekMANDA",3,150,40,null,null,null,null,null,"MERA DÖNEMİNDE KURU OT İHTİYACI (TON)",{"$f":"U18/4","v":2115},null,null,null,null,null,null,null,null,null,0]
[null,null,null,null,null,null,null,null,null,"KOYUN","KOYUN",700,160,40,null,null,null,null,null,"OTLATMA ORANI",{"$f":"U18/U15","v":1},null,null,null,null,null,null,null,null,null,0]
[null,null,null,null,null,null,null,null,null,"KOYUN","Erkek KUZU",350,160,40,null,null,null,null,null,"TOPLAM HAYVAN SAYISI (HB)",{"$f":"SUM(Tablo2[TOPLAM BBHB])","v":1109.5200000000002},null,null,null,null,null,null,null,null,null,0]
[null,null,null,null,null,null,null,null,null,"KOYUN","Dişi KUZU",350,160,40,null,null,null,null,null,"MERA OTLATMA KAPASİTESİ (HB)",{"$f":"1000*(U16)/(((12.5)*AVERAGE(Tablo1[MERADA OTLATMA GÜN SAYISI (GÜN)])))","v":1128},null,null,null,null,null,null,null,null,null,0]
[null,null,null,null,null,null,null,null,null,"KEÇİ","KEÇİ",150,160,40,null,null,null,null,null,"ÜRETİMİN İHTİYACI KARŞILAMA ORANI (%)",{"$f":"U16/U19","v":1},null,null,null,null,null,null,null,null,null,0]
[null,null,null,null,null,null,null,null,null,"KEÇİ","Erkek OĞLAK",75,160,40,null,null,null,null,{"$f":"IF(U24<W24,X27,IF(AND(U24>X24),X26,IF(AND(U24=W24),X27,IF(AND(U24=X24),X26,IF(AND(U24<X24,U24>W24),X25,0)))))","v":"TAMAM"},"MERA DÖNEMİNDE KURU KABA YEM AÇIĞI (TON)",{"$f":"X3","v":0},null,-0.5,0.5,null,null,null,null,null,null,0]
[null,null,null,null,null,null,null,null,null,"KEÇİ","DişiOĞLAK",75,160,40,null,null,null,null,null,"İLKBAHAR VE ANIZ OTLATMA KURU OT ÜRETİMİ (TON)",{"$f":"SUM(Tablo2[MERA DIŞI TOPLAM YAŞ OT TÜKETİMİ (KG)])/4/1000","v":639.61875000000009},null,null,"TAMAM",null,null,null,null,null,null,0]
[null,null,null,null,null,null,null,null,null,"AT","AT",3,150,40,null,null,null,null,null,"AHIR DÖNEMİNDE TÜKETİLEN KURUOT (TON)",{"$f":"(SUM(Tablo2[AHIRDA TOPLAM KURU OT TÜKETİMİ (KG)]))/1000","v":2307.5662500000003},null,null,"EKSİK",null,null,null,null,null,null,0]
[null,null,null,null,null,null,null,null,null,"KATIR","KATIR",2,150,40,null,null,null,null,null,"TOPLAM KURU OT İHTİYACI (TON)",{"$f":"SUM(U19,U25,U26)","v":5062.1850000000004},null,null,"FAZLA",null,null,null,null,null,null,0]
[null,null,null,null,null,null,null,null,null,"EŞEK","EŞEK",4,150,40,null,null,null,null,null,"HASAT EDİLEN HAVADA KURU KABAYEM (TON)",{"$f":"SUM(AE3:AE28)/1000","v":1182.2387500000002},null,null,null,null,null,null,null,null,null,0]
[null,null,null,null,null,null,null,null,null,null,null,null,null,null,null,null,null,null,{"$f":"IF(U29<W24,X27,IF(AND(U29>X24),X26,IF(AND(U29=W24),X27,IF(AND(U29=X24),X26,IF(AND(U29<X24,U29>W24),X25,0)))))","v":"EKSİK"},"AHIRDA KURU KABAYEM AÇIĞI (TON)",{"$f":"U26-U28","v":1125.3275000000001},null,-0.5,0.5]
[null,null,null,null,null,null,null,null,null,null,null,null,null,null,null,null,null,null,{"$f":"IF(U30<W24,X27,IF(AND(U30>X24),X26,IF(AND(U30=W24),X27,IF(AND(U30=X24),X26,IF(AND(U30<X24,U30>W24),X25,0)))))","v":"EKSİK"},"TOPLAM KURU KABAYEM AÇIĞI (TON)",{"$f":"U29+U24","v":1125.3275000000001},null,-0.5,0.5]
[null,null,null,null,null,null,null,null,null,null,null,null,null,null,null,null,null,null,null,"KANAAT",{"$f":"Q4","v":"normal otlatma"}]
[null,null,null,null,null,null,null,null,null,null,null,null,null,null,null,null,null,null,null,"RAPORU HAZIRLAMA TARİHİ",{"$f":"R3","v":"2016-08-10"}]
[null,null,null,null,null,null,null,null,null,null,null,null,null,null,null,null,null,null,null,"RAPORU HAZIRLAYAN",{"$f":"T3","v":"Mustafa UZUN"}]

{"sheet":"MERA YEM TÜKETİM","index":2,"n_rows":25,"n_cols":11,"rows_kept":25,"cut":false,"hidden":true,"merged":[]}
[]
["HAYVAN TÜRÜ/IRKI","HAYVAN \nCİNSİ","MERA YÖNETMELİĞİNE GÖRE CANLI AĞIRLIK (KG)","MERA YÖNETMELİĞİNE GÖRE YAŞ OT TÜKETİMİ (KG/BAŞ/GÜN)","MERA YÖNETMELİĞİNE TOPLAM GÖRE YAŞ OT TÜKETİMİ2(TON)","MERA YÖNETMELİĞİNE GENEL TOPLAM GÖRE YAŞ OT TÜKETİMİ3(TON)","BBHB CİNSİNDEN BİRİM HAYVAN DEĞERLERİ","TOPLAM BBHB","MERA DIŞI TOPLAM YAŞ OT TÜKETİMİ (KG)","AHIR BAKIM SÜRESİ","AHIRDA TOPLAM KURU OT TÜKETİMİ (KG)"]
["SIĞIR (KÜLTÜR)","36 ay<Dişi(İNEK)",500,{"$f":"Tablo2[[#This Row],[MERA YÖNETMELİĞİNE GÖRE CANLI AĞIRLIK (KG)]]*0.1","v":50},{"$f":"Tablo2[[#This Row],[MERA YÖNETMELİĞİNE GÖRE YAŞ OT TÜKETİMİ (KG/BAŞ/GÜN)]]*'MERA VERİ GİRİŞİ'!L10*'MERA VERİ GİRİŞİ'!M10/1000","v":300},{"$f":"SUM(Tablo2[MERA YÖNETMELİĞİNE TOPLAM GÖRE YAŞ OT TÜKETİMİ2(TON)])","v":8460},{"$f":"(POWER(Tablo2[[#This Row],[MERA YÖNETMELİĞİNE GÖRE CANLI AĞIRLIK (KG)]],3/4))/POWER(500,3/4)","v":1},{"$f":"Tablo2[[#This Row],[BBHB CİNSİNDEN BİRİM HAYVAN DEĞERLERİ]]*'MERA VERİ GİRİŞİ'!L10","v":50},{"$f":"Tablo2[[#This Row],[MERA YÖNETMELİĞİNE GÖRE YAŞ OT TÜKETİMİ (KG/BAŞ/GÜN)]]*'MERA VERİ GİRİŞİ'!N10*'MERA VERİ GİRİŞİ'!L10","v":150000},{"$f":"365-'MERA VERİ GİRİŞİ'!M10-'MERA VERİ GİRİŞİ'!N10","v":185},{"$f":"(Tablo2[[#This Row],[MERA YÖNETMELİĞİNE GÖRE YAŞ OT TÜKETİMİ (KG/BAŞ/GÜN)]]/4)*(Tablo2[[#This Row],[AHIR BAKIM SÜRESİ]])*'MERA VERİ GİRİŞİ'!L10","v":115625}]
["SIĞIR (KÜLTÜR)","12-24 ay Dişi(DANA-DÜVE",{"$f":"C3*0.6","v":300},{"$f":"Tablo2[[#This Row],[MERA YÖNETMELİĞİNE GÖRE CANLI AĞIRLIK (KG)]]*0.1","v":30},{"$f":"Tablo2[[#This Row],[MERA YÖNETMELİĞİNE GÖRE YAŞ OT TÜKETİMİ (KG/BAŞ/GÜN)]]*'MERA VERİ GİRİŞİ'!L11*'MERA VERİ GİRİŞİ'!M11/1000","v":72},null,0.6,{"$f":"Tablo2[[#This Row],[BBHB CİNSİNDEN BİRİM HAYVAN DEĞERLERİ]]*'MERA VERİ GİRİŞİ'!L11","v":12},{"$f":"Tablo2[[#This Row],[MERA YÖNETMELİĞİNE GÖRE YAŞ OT TÜKETİMİ (KG/BAŞ/GÜN)]]*'MERA VERİ GİRİŞİ'!N11*'MERA VERİ GİRİŞİ'!L11","v":36000},{"$f":"365-'MERA VERİ GİRİŞİ'!M11-'MERA VERİ GİRİŞİ'!N11","v":185},{"$f":"(Tablo2[[#This Row],[MERA YÖNETMELİĞİNE GÖRE YAŞ OT TÜKETİMİ (KG/BAŞ/GÜN)]]/4)*(Tablo2[[#This Row],[AHIR BAKIM SÜRESİ]])*'MERA VERİ GİRİŞİ'!L11","v":27750}]
["SIĞIR (KÜLTÜR)","36 ay<Erkek(BOĞA)",{"$f":"C3*1.5","v":750},{"$f":"Tablo2[[#This Row],[MERA YÖNETMELİĞİNE GÖRE CANLI AĞIRLIK (KG)]]*0.1","v":75},{"$f":"Tablo2[[#This Row],[MERA YÖNETMELİĞİNE GÖRE YAŞ OT TÜKETİMİ (KG/BAŞ/GÜN)]]*'MERA VERİ GİRİŞİ'!L12*'MERA VERİ GİRİŞİ'!M12/1000","v":36},null,1.5,{"$f":"Tablo2[[#This Row],[BBHB CİNSİNDEN BİRİM HAYVAN DEĞERLERİ]]*'MERA VERİ GİRİŞİ'!L12","v":6},{"$f":"Tablo2[[#This Row],[MERA YÖNETMELİĞİNE GÖRE YAŞ OT TÜKETİMİ (KG/BAŞ/GÜN)]]*'MERA VERİ GİRİŞİ'!N12*'MERA VERİ GİRİŞİ'!L12","v":18000},{"$f":"365-'MERA VERİ GİRİŞİ'!M12-'MERA VERİ GİRİŞİ'!N12","v":185},{"$f":"(Tablo2[[#This Row],[MERA YÖNETMELİĞİNE GÖRE YAŞ OT TÜKETİMİ (KG/BAŞ/GÜN)]]/4)*(Tablo2[[#This Row],[AHIR BAKIM SÜRESİ]])*'MERA VERİ GİRİŞİ'!L12","v":13875}]
["SIĞIR (MELEZ)","36 ay<Dişi(İNEK)",{"$f":"C3*0.75","v":375},{"$f":"Tablo2[[#This Row],[MERA YÖNETMELİĞİNE GÖRE CANLI AĞIRLIK (KG)]]*0.1","v":37.5},{"$f":"Tablo2[[#This Row],[MERA YÖNETMELİĞİNE GÖRE YAŞ OT TÜKETİMİ (KG/BAŞ/GÜN)]]*'MERA VERİ GİRİŞİ'!L13*'MERA VERİ GİRİŞİ'!M13/1000","v":2643.75},null,0.75,{"$f":"Tablo2[[#This Row],[BBHB CİNSİNDEN BİRİM HAYVAN DEĞERLERİ]]*'MERA VERİ GİRİŞİ'!L13","v":352.5},{"$f":"Tablo2[[#This Row],[MERA YÖNETMELİĞİNE GÖRE YAŞ OT TÜKETİMİ (KG/BAŞ/GÜN)]]*'MERA VERİ GİRİŞİ'!N13*'MERA VERİ GİRİŞİ'!L13","v":881250},{"$f":"365-'MERA VERİ GİRİŞİ'!M13-'MERA VERİ GİRİŞİ'!N13","v":165},{"$f":"(Tablo2[[#This Row],[MERA YÖNETMELİĞİNE GÖRE YAŞ OT TÜKETİMİ (KG/BAŞ/GÜN)]]/4)*(Tablo2[[#This Row],[AHIR BAKIM SÜRESİ]])*'MERA VERİ GİRİŞİ'!L13","v":727031.25}]
["SIĞIR (MELEZ)","12-24 ay Dişi(DANA-DÜVE",{"$f":"C3*0.45","v":225},{"$f":"Tablo2[[#This Row],[MERA YÖNETMELİĞİNE GÖRE CANLI AĞIRLIK (KG)]]*0.1","v":22.5},{"$f":"Tablo2[[#This Row],[MERA YÖNETMELİĞİNE GÖRE YAŞ OT TÜKETİMİ (KG/BAŞ/GÜN)]]*'MERA VERİ GİRİŞİ'!L14*'MERA VERİ GİRİŞİ'!M14/1000","v":1427.7750000000015},null,0.45,{"$f":"Tablo2[[#This Row],[BBHB CİNSİNDEN BİRİM HAYVAN DEĞERLERİ]]*'MERA VERİ GİRİŞİ'!L14","v":190.3700000000002},{"$f":"Tablo2[[#This Row],[MERA YÖNETMELİĞİNE GÖRE YAŞ OT TÜKETİMİ (KG/BAŞ/GÜN)]]*'MERA VERİ GİRİŞİ'!N14*'MERA VERİ GİRİŞİ'!L14","v":475925.00000000047},{"$f":"365-'MERA VERİ GİRİŞİ'!M14-'MERA VERİ GİRİŞİ'!N14","v":165},{"$f":"(Tablo2[[#This Row],[MERA YÖNETMELİĞİNE GÖRE YAŞ OT TÜKETİMİ (KG/BAŞ/GÜN)]]/4)*(Tablo2[[#This Row],[AHIR BAKIM SÜRESİ]])*'MERA VERİ GİRİŞİ'!L14","v":392638.12500000041}]
["SIĞIR (YERLİ)","36 ay<Dişi(İNEK)",{"$f":"C3*0.5","v":250},{"$f":"Tablo2[[#This Row],[MERA YÖNETMELİĞİNE GÖRE CANLI AĞIRLIK (KG)]]*0.1","v":25},{"$f":"Tablo2[[#This Row],[MERA YÖNETMELİĞİNE GÖRE YAŞ OT TÜKETİMİ (KG/BAŞ/GÜN)]]*'MERA VERİ GİRİŞİ'!L15*'MERA VERİ GİRİŞİ'!M15/1000","v":1880},null,0.5,{"$f":"Tablo2[[#This Row],[BBHB CİNSİNDEN BİRİM HAYVAN DEĞERLERİ]]*'MERA VERİ GİRİŞİ'!L15","v":235},{"$f":"Tablo2[[#This Row],[MERA YÖNETMELİĞİNE GÖRE YAŞ OT TÜKETİMİ (KG/BAŞ/GÜN)]]*'MERA VERİ GİRİŞİ'!N15*'MERA VERİ GİRİŞİ'!L15","v":470000},{"$f":"365-'MERA VERİ GİRİŞİ'!M15-'MERA VERİ GİRİŞİ'!N15","v":165},{"$f":"(Tablo2[[#This Row],[MERA YÖNETMELİĞİNE GÖRE YAŞ OT TÜKETİMİ (KG/BAŞ/GÜN)]]/4)*(Tablo2[[#This Row],[AHIR BAKIM SÜRESİ]])*'MERA VERİ GİRİŞİ'!L15","v":484687.5}]
["SIĞIR (YERLİ)","12-24 ay Dişi(DANA-DÜVE",{"$f":"C3*0.3","v":150},{"$f":"Tablo2[[#This Row],[MERA YÖNETMELİĞİNE GÖRE CANLI AĞIRLIK (KG)]]*0.1","v":15},{"$f":"Tablo2[[#This Row],[MERA YÖNETMELİĞİNE GÖRE YAŞ OT TÜKETİMİ (KG/BAŞ/GÜN)]]*'MERA VERİ GİRİŞİ'!L16*'MERA VERİ GİRİŞİ'!M16/1000","v":1022.4},null,0.3,{"$f":"Tablo2[[#This Row],[BBHB CİNSİNDEN BİRİM HAYVAN DEĞERLERİ]]*'MERA VERİ GİRİŞİ'!L16","v":127.8},{"$f":"Tablo2[[#This Row],[MERA YÖNETMELİĞİNE GÖRE YAŞ OT TÜKETİMİ (KG/BAŞ/GÜN)]]*'MERA VERİ GİRİŞİ'!N16*'MERA VERİ GİRİŞİ'!L16","v":255600},{"$f":"365-'MERA VERİ GİRİŞİ'!M16-'MERA VERİ GİRİŞİ'!N16","v":165},{"$f":"(Tablo2[[#This Row],[MERA YÖNETMELİĞİNE GÖRE YAŞ OT TÜKETİMİ (KG/BAŞ/GÜN)]]/4)*(Tablo2[[#This Row],[AHIR BAKIM SÜRESİ]])*'MERA VERİ GİRİŞİ'!L16","v":263587.5}]
["SIĞIR (YERLİ)","36 ay<Erkek(ÖKÜZ)",{"$f":"C3*0.6","v":300},{"$f":"Tablo2[[#This Row],[MERA YÖNETMELİĞİNE GÖRE CANLI AĞIRLIK (KG)]]*0.1","v":30},{"$f":"Tablo2[[#This Row],[MERA YÖNETMELİĞİNE GÖRE YAŞ OT TÜKETİMİ (KG/BAŞ/GÜN)]]*'MERA VERİ GİRİŞİ'!L17*'MERA VERİ GİRİŞİ'!M17/1000","v":19.2},null,0.6,{"$f":"Tablo2[[#This Row],[BBHB CİNSİNDEN BİRİM HAYVAN DEĞERLERİ]]*'MERA VERİ GİRİŞİ'!L17","v":2.4},{"$f":"Tablo2[[#This Row],[MERA YÖNETMELİĞİNE GÖRE YAŞ OT TÜKETİMİ (KG/BAŞ/GÜN)]]*'MERA VERİ GİRİŞİ'!N17*'MERA VERİ GİRİŞİ'!L17","v":4800},{"$f":"365-'MERA VERİ GİRİŞİ'!M17-'MERA VERİ GİRİŞİ'!N17","v":165},{"$f":"(Tablo2[[#This Row],[MERA YÖNETMELİĞİNE GÖRE YAŞ OT TÜKETİMİ (KG/BAŞ/GÜN)]]/4)*(Tablo2[[#This Row],[AHIR BAKIM SÜRESİ]])*'MERA VERİ GİRİŞİ'!L17","v":4950}]
["MANDA","36 ay<Dişi",{"$f":"C3*0.75","v":375},{"$f":"Tablo2[[#This Row],[MERA YÖNETMELİĞİNE GÖRE CANLI AĞIRLIK (KG)]]*0.1","v":37.5},{"$f":"Tablo2[[#This Row],[MERA YÖNETMELİĞİNE GÖRE YAŞ OT TÜKETİMİ (KG/BAŞ/GÜN)]]*'MERA VERİ GİRİŞİ'!L18*'MERA VERİ GİRİŞİ'!M18/1000","v":84.375},null,0.75,{"$f":"Tablo2[[#This Row],[BBHB CİNSİNDEN BİRİM HAYVAN DEĞERLERİ]]*'MERA VERİ GİRİŞİ'!L18","v":11.25},{"$f":"Tablo2[[#This Row],[MERA YÖNETMELİĞİNE GÖRE YAŞ OT TÜKETİMİ (KG/BAŞ/GÜN)]]*'MERA VERİ GİRİŞİ'!N18*'MERA VERİ GİRİŞİ'!L18","v":22500},{"$f":"365-'MERA VERİ GİRİŞİ'!M18-'MERA VERİ GİRİŞİ'!N18","v":175},{"$f":"(Tablo2[[#This Row],[MERA YÖNETMELİĞİNE GÖRE YAŞ OT TÜKETİMİ (KG/BAŞ/GÜN)]]/4)*(Tablo2[[#This Row],[AHIR BAKIM SÜRESİ]])*'MERA VERİ GİRİŞİ'!L18","v":24609.375}]
["MANDA","36 ay<Erkek",{"$f":"C3*0.9","v":450},{"$f":"Tablo2[[#This Row],[MERA YÖNETMELİĞİNE GÖRE CANLI AĞIRLIK (KG)]]*0.1","v":45},{"$f":"Tablo2[[#This Row],[MERA YÖNETMELİĞİNE GÖRE YAŞ OT TÜKETİMİ (KG/BAŞ/GÜN)]]*'MERA VERİ GİRİŞİ'!L19*'MERA VERİ GİRİŞİ'!M19/1000","v":20.25},null,0.9,{"$f":"Tablo2[[#This Row],[BBHB CİNSİNDEN BİRİM HAYVAN DEĞERLERİ]]*'MERA VERİ GİRİŞİ'!L19","v":2.7},{"$f":"Tablo2[[#This Row],[MERA YÖNETMELİĞİNE GÖRE YAŞ OT TÜKETİMİ (KG/BAŞ/GÜN)]]*'MERA VERİ GİRİŞİ'!N19*'MERA VERİ GİRİŞİ'!L19","v":5400},{"$f":"365-'MERA VERİ GİRİŞİ'!M19-'MERA VERİ GİRİŞİ'!N19","v":175},{"$f":"(Tablo2[[#This Row],[MERA YÖNETMELİĞİNE GÖRE YAŞ OT TÜKETİMİ (KG/BAŞ/GÜN)]]/4)*(Tablo2[[#This Row],[AHIR BAKIM SÜRESİ]])*'MERA VERİ GİRİŞİ'!L19","v":5906.25}]
["KOYUN","36 ay<Dişi",{"$f":"C3*0.1","v":50},{"$f":"Tablo2[[#This Row],[MERA YÖNETMELİĞİNE GÖRE CANLI AĞIRLIK (KG)]]*0.1","v":5},{"$f":"Tablo2[[#This Row],[MERA YÖNETMELİĞİNE GÖRE YAŞ OT TÜKETİMİ (KG/BAŞ/GÜN)]]*'MERA VERİ GİRİŞİ'!L20*'MERA VERİ GİRİŞİ'!M20/1000","v":560},null,0.1,{"$f":"Tablo2[[#This Row],[BBHB CİNSİNDEN BİRİM HAYVAN DEĞERLERİ]]*'MERA VERİ GİRİŞİ'!L20","v":70},{"$f":"Tablo2[[#This Row],[MERA YÖNETMELİĞİNE GÖRE YAŞ OT TÜKETİMİ (KG/BAŞ/GÜN)]]*'MERA VERİ GİRİŞİ'!N20*'MERA VERİ GİRİŞİ'!L20","v":140000},{"$f":"365-'MERA VERİ GİRİŞİ'!M20-'MERA VERİ GİRİŞİ'!N20","v":165},{"$f":"(Tablo2[[#This Row],[MERA YÖNETMELİĞİNE GÖRE YAŞ OT TÜKETİMİ (KG/BAŞ/GÜN)]]/4)*(Tablo2[[#This Row],[AHIR BAKIM SÜRESİ]])*'MERA VERİ GİRİŞİ'!L20","v":144375}]
["KOYUN","0-6 ay Erkek(KUZU)",{"$f":"C3*0.04","v":20},{"$f":"Tablo2[[#This Row],[MERA YÖNETMELİĞİNE GÖRE CANLI AĞIRLIK (KG)]]*0.1","v":2},{"$f":"Tablo2[[#This Row],[MERA YÖNETMELİĞİNE GÖRE YAŞ OT TÜKETİMİ (KG/BAŞ/GÜN)]]*'MERA VERİ GİRİŞİ'!L21*'MERA VERİ GİRİŞİ'!M21/1000","v":112},null,0.04,{"$f":"Tablo2[[#This Row],[BBHB CİNSİNDEN BİRİM HAYVAN DEĞERLERİ]]*'MERA VERİ GİRİŞİ'!L21","v":14},{"$f":"Tablo2[[#This Row],[MERA YÖNETMELİĞİNE GÖRE YAŞ OT TÜKETİMİ (KG/BAŞ/GÜN)]]*'MERA VERİ GİRİŞİ'!N21*'MERA VERİ GİRİŞİ'!L21","v":28000},{"$f":"365-'MERA VERİ GİRİŞİ'!M21-'MERA VERİ GİRİŞİ'!N21","v":165},{"$f":"(Tablo2[[#This Row],[MERA YÖNETMELİĞİNE GÖRE YAŞ OT TÜKETİMİ (KG/BAŞ/GÜN)]]/4)*(Tablo2[[#This Row],[AHIR BAKIM SÜRESİ]])*'MERA VERİ GİRİŞİ'!L21","v":28875}]
["KOYUN","0-6 ay Dişi(KUZU)",{"$f":"C3*0.04","v":20},{"$f":"Tablo2[[#This Row],[MERA YÖNETMELİĞİNE GÖRE CANLI AĞIRLIK (KG)]]*0.1","v":2},{"$f":"Tablo2[[#This Row],[MERA YÖNETMELİĞİNE GÖRE YAŞ OT TÜKETİMİ (KG/BAŞ/GÜN)]]*'MERA VERİ GİRİŞİ'!L22*'MERA VERİ GİRİŞİ'!M22/1000","v":112},null,0.04,{"$f":"Tablo2[[#This Row],[BBHB CİNSİNDEN BİRİM HAYVAN DEĞERLERİ]]*'MERA VERİ GİRİŞİ'!L22","v":14},{"$f":"Tablo2[[#This Row],[MERA YÖNETMELİĞİNE GÖRE YAŞ OT TÜKETİMİ (KG/BAŞ/GÜN)]]*'MERA VERİ GİRİŞİ'!N22*'MERA VERİ GİRİŞİ'!L22","v":28000},{"$f":"365-'MERA VERİ GİRİŞİ'!M22-'MERA VERİ GİRİŞİ'!N22","v":165},{"$f":"(Tablo2[[#This Row],[MERA YÖNETMELİĞİNE GÖRE YAŞ OT TÜKETİMİ (KG/BAŞ/GÜN)]]/4)*(Tablo2[[#This Row],[AHIR BAKIM SÜRESİ]])*'MERA VERİ GİRİŞİ'!L22","v":28875}]
["KEÇİ","36 ay<Dişi",{"$f":"C3*0.08","v":40},{"$f":"Tablo2[[#This Row],[MERA YÖNETMELİĞİNE GÖRE CANLI AĞIRLIK (KG)]]*0.1","v":4},{"$f":"Tablo2[[#This Row],[MERA YÖNETMELİĞİNE GÖRE YAŞ OT TÜKETİMİ (KG/BAŞ/GÜN)]]*'MERA VERİ GİRİŞİ'!L23*'MERA VERİ GİRİŞİ'!M23/1000","v":96},null,0.08,{"$f":"Tablo2[[#This Row],[BBHB CİNSİNDEN BİRİM HAYVAN DEĞERLERİ]]*'MERA VERİ GİRİŞİ'!L23","v":12},{"$f":"Tablo2[[#This Row],[MERA YÖNETMELİĞİNE GÖRE YAŞ OT TÜKETİMİ (KG/BAŞ/GÜN)]]*'MERA VERİ GİRİŞİ'!N23*'MERA VERİ GİRİŞİ'!L23","v":24000},{"$f":"365-'MERA VERİ GİRİŞİ'!M23-'MERA VERİ GİRİŞİ'!N23","v":165},{"$f":"(Tablo2[[#This Row],[MERA YÖNETMELİĞİNE GÖRE YAŞ OT TÜKETİMİ (KG/BAŞ/GÜN)]]/4)*(Tablo2[[#This Row],[AHIR BAKIM SÜRESİ]])*'MERA VERİ GİRİŞİ'!L23","v":24750}]
["KEÇİ","0-6 ay Erkek(OĞLAK)",{"$f":"C3*0.04","v":20},{"$f":"Tablo2[[#This Row],[MERA YÖNETMELİĞİNE GÖRE CANLI AĞIRLIK (KG)]]*0.1","v":2},{"$f":"Tablo2[[#This Row],[MERA YÖNETMELİĞİNE GÖRE YAŞ OT TÜKETİMİ (KG/BAŞ/GÜN)]]*'MERA VERİ GİRİŞİ'!L24*'MERA VERİ GİRİŞİ'!M24/1000","v":24},null,0.04,{"$f":"Tablo2[[#This Row],[BBHB CİNSİNDEN BİRİM HAYVAN DEĞERLERİ]]*'MERA VERİ GİRİŞİ'!L24","v":3},{"$f":"Tablo2[[#This Row],[MERA YÖNETMELİĞİNE GÖRE YAŞ OT TÜKETİMİ (KG/BAŞ/GÜN)]]*'MERA VERİ GİRİŞİ'!N24*'MERA VERİ GİRİŞİ'!L24","v":6000},{"$f":"365-'MERA VERİ GİRİŞİ'!M24-'MERA VERİ GİRİŞİ'!N24","v":165},{"$f":"(Tablo2[[#This Row],[MERA YÖNETMELİĞİNE GÖRE YAŞ OT TÜKETİMİ (KG/BAŞ/GÜN)]]/4)*(Tablo2[[#This Row],[AHIR BAKIM SÜRESİ]])*'MERA VERİ GİRİŞİ'!L24","v":6187.5}]
["KEÇİ","0-6 ay Dişi(OĞLAK)",{"$f":"C3*0.04","v":20},{"$f":"Tablo2[[#This Row],[MERA YÖNETMELİĞİNE GÖRE CANLI AĞIRLIK (KG)]]*0.1","v":2},{"$f":"Tablo2[[#This Row],[MERA YÖNETMELİĞİNE GÖRE YAŞ OT TÜKETİMİ (KG/BAŞ/GÜN)]]*'MERA VERİ GİRİŞİ'!L25*'MERA VERİ GİRİŞİ'!M25/1000","v":24},null,0.04,{"$f":"Tablo2[[#This Row],[BBHB CİNSİNDEN BİRİM HAYVAN DEĞERLERİ]]*'MERA VERİ GİRİŞİ'!L25","v":3},{"$f":"Tablo2[[#This Row],[MERA YÖNETMELİĞİNE GÖRE YAŞ OT TÜKETİMİ (KG/BAŞ/GÜN)]]*'MERA VERİ GİRİŞİ'!N25*'MERA VERİ GİRİŞİ'!L25","v":6000},{"$f":"365-'MERA VERİ GİRİŞİ'!M25-'MERA VERİ GİRİŞİ'!N25","v":165},{"$f":"(Tablo2[[#This Row],[MERA YÖNETMELİĞİNE GÖRE YAŞ OT TÜKETİMİ (KG/BAŞ/GÜN)]]/4)*(Tablo2[[#This Row],[AHIR BAKIM SÜRESİ]])*'MERA VERİ GİRİŞİ'!L25","v":6187.5}]
["AT","AT",{"$f":"C3*0.5","v":250},{"$f":"Tablo2[[#This Row],[MERA YÖNETMELİĞİNE GÖRE CANLI AĞIRLIK (KG)]]*0.1","v":25},{"$f":"Tablo2[[#This Row],[MERA YÖNETMELİĞİNE GÖRE YAŞ OT TÜKETİMİ (KG/BAŞ/GÜN)]]*'MERA VERİ GİRİŞİ'!L26*'MERA VERİ GİRİŞİ'!M26/1000","v":11.25},null,0.5,{"$f":"Tablo2[[#This Row],[BBHB CİNSİNDEN BİRİM HAYVAN DEĞERLERİ]]*'MERA VERİ GİRİŞİ'!L26","v":1.5},{"$f":"Tablo2[[#This Row],[MERA YÖNETMELİĞİNE GÖRE YAŞ OT TÜKETİMİ (KG/BAŞ/GÜN)]]*'MERA VERİ GİRİŞİ'!N26*'MERA VERİ GİRİŞİ'!L26","v":3000},{"$f":"365-'MERA VERİ GİRİŞİ'!M26-'MERA VERİ GİRİŞİ'!N26","v":175},{"$f":"(Tablo2[[#This Row],[MERA YÖNETMELİĞİNE GÖRE YAŞ OT TÜKETİMİ (KG/BAŞ/GÜN)]]/4)*(Tablo2[[#This Row],[AHIR BAKIM SÜRESİ]])*'MERA VERİ GİRİŞİ'!L26","v":3281.25}]
["KATIR","KATIR",{"$f":"C3*0.4","v":200},{"$f":"Tablo2[[#This Row],[MERA YÖNETMELİĞİNE GÖRE CANLI AĞIRLIK (KG)]]*0.1","v":20},{"$f":"Tablo2[[#This Row],[MERA YÖNETMELİĞİNE GÖRE YAŞ OT TÜKETİMİ (KG/BAŞ/GÜN)]]*'MERA VERİ GİRİŞİ'!L27*'MERA VERİ GİRİŞİ'!M27/1000","v":6},null,0.4,{"$f":"Tablo2[[#This Row],[BBHB CİNSİNDEN BİRİM HAYVAN DEĞERLERİ]]*'MERA VERİ GİRİŞİ'!L27","v":0.8},{"$f":"Tablo2[[#This Row],[MERA YÖNETMELİĞİNE GÖRE YAŞ OT TÜKETİMİ (KG/BAŞ/GÜN)]]*'MERA VERİ GİRİŞİ'!N27*'MERA VERİ GİRİŞİ'!L27","v":1600},{"$f":"365-'MERA VERİ GİRİŞİ'!M27-'MERA VERİ GİRİŞİ'!N27","v":175},{"$f":"(Tablo2[[#This Row],[MERA YÖNETMELİĞİNE GÖRE YAŞ OT TÜKETİMİ (KG/BAŞ/GÜN)]]/4)*(Tablo2[[#This Row],[AHIR BAKIM SÜRESİ]])*'MERA VERİ GİRİŞİ'!L27","v":1750}]
["EŞEK","EŞEK",{"$f":"C3*0.3","v":150},{"$f":"Tablo2[[#This Row],[MERA YÖNETMELİĞİNE GÖRE CANLI AĞIRLIK (KG)]]*0.1","v":15},{"$f":"Tablo2[[#This Row],[MERA YÖNETMELİĞİNE GÖRE YAŞ OT TÜKETİMİ (KG/BAŞ/GÜN)]]*'MERA VERİ GİRİŞİ'!L28*'MERA VERİ GİRİŞİ'!M28/1000","v":9},null,0.3,{"$f":"Tablo2[[#This Row],[BBHB CİNSİNDEN BİRİM HAYVAN DEĞERLERİ]]*'MERA VERİ GİRİŞİ'!L28","v":1.2},{"$f":"Tablo2[[#This Row],[MERA YÖNETMELİĞİNE GÖRE YAŞ OT TÜKETİMİ (KG/BAŞ/GÜN)]]*'MERA VERİ GİRİŞİ'!N28*'MERA VERİ GİRİŞİ'!L28","v":2400},{"$f":"365-'MERA VERİ GİRİŞİ'!M28-'MERA VERİ GİRİŞİ'!N28","v":175},{"$f":"(Tablo2[[#This Row],[MERA YÖNETMELİĞİNE GÖRE YAŞ OT TÜKETİMİ (KG/BAŞ/GÜN)]]/4)*(Tablo2[[#This Row],[AHIR BAKIM SÜRESİ]])*'MERA VERİ GİRİŞİ'!L28","v":2625}]
["KEÇİ"]
["KEÇİ"]
["KEÇİ"]
["KEÇİ"]

{"sheet":"KAYIT","index":3,"n_rows":4,"n_cols":25,"rows_kept":4,"cut":false,"hidden":false,"merged":[]}
["Sıra No","İLİ","İLÇESİ","MAHALLESİ/KÖYÜ","MERA MEVKİİ","MERA ALANI (DA)","MERA TOPLAM YAŞ OT ÜRETİMİ (TON)","MERA TOPLAM KURU OT ÜRETİMİ (TON)","MERA  ORTALAMA YAŞ OT VERİMİ (KG/DA)","MERA DÖNEMİNDE YAŞ OT İHTİYACI (TON)","MERA DÖNEMİNDE KURU OT İHTİYACI (TON)","OTLATMA ORANI","TOPLAM HAYVAN SAYISI (HB)","MERA OTLATMA KAPASİTESİ (HB)","ÜRETİMİN İHTİYACI KARŞILAMA ORANI (%)","MERA DÖNEMİNDE KURU KABA YEM AÇIĞI (TON)","İLKBAHAR VE ANIZ OTLATMA KURU OT ÜRETİMİ (TON)","AHIR DÖNEMİNDE TÜKETİLEN KURUOT (TON)","TOPLAM KURU OT İHTİYACI (TON)","HASAT EDİLEN HAVADA KURU KABAYEM (TON)","AHIRDA KURU KABAYEM AÇIĞI (TON)","TOPLAM KURU KABAYEM AÇIĞI (TON)","KANAAT","RAPORU HAZIRLAMA TARİHİ","RAPORU HAZIRLAYAN"]
[0]
[{"$f":"A2+1","v":1},"ERZURUM","OLTU","DAMARLITAŞ",0,19000,8460,2115,890.52631578947364,8460,2115,1,1109.5200000000002,1128,1,0,639.61875000000009,2307.5662500000003,5062.1850000000004,1182.2387500000002,1125.3275000000001,1125.3275000000001,"normal otlatma","2016-08-10","Mustafa UZUN"]
[{"$f":"A3+1","v":2},"ERZURUM","OLTU","DAMARLITAŞ",0,19000,8460,2115,890.52631578947364,4230,1057.5,0.5,563.90666666666664,1128,2,-1057.5,333.08541666666667,1182.23875,2572.8241666666668,1182.2387500000002,0,-1057.5,"çok hafif otlatma","2016-08-10","Mustafa UZUN"]

{"sheet":"ARŞİV","index":4,"n_rows":4,"n_cols":25,"rows_kept":4,"cut":false,"hidden":false,"merged":[]}
["Sıra No","İLİ","İLÇESİ","MAHALLESİ/KÖYÜ","MERA MEVKİİ","MERA ALANI (DA)","MERA TOPLAM YAŞ OT ÜRETİMİ (TON)","MERA TOPLAM KURU OT ÜRETİMİ (TON)","MERA  ORTALAMA YAŞ OT VERİMİ (KG/DA)","MERA DÖNEMİNDE YAŞ OT İHTİYACI (TON)","MERA DÖNEMİNDE KURU OT İHTİYACI (TON)","OTLATMA ORANI","TOPLAM HAYVAN SAYISI (HB)","MERA OTLATMA KAPASİTESİ (HB)","ÜRETİMİN İHTİYACI KARŞILAMA ORANI (%)","MERA DÖNEMİNDE KURU KABA YEM AÇIĞI (TON)","İLKBAHAR VE ANIZ OTLATMA KURU OT ÜRETİMİ (TON)","AHIR DÖNEMİNDE TÜKETİLEN KURUOT (TON)","TOPLAM KURU OT İHTİYACI (TON)","HASAT EDİLEN HAVADA KURU KABAYEM (TON)","AHIRDA KURU KABAYEM AÇIĞI (TON)","TOPLAM KURU KABAYEM AÇIĞI (TON)","KANAAT","RAPORU HAZIRLAMA TARİHİ","RAPORU HAZIRLAYAN"]
[1,"ERZURUM","OLTU","DAMARLITAŞ",0,19000,8460,2115,890.52631578947364,8460,2115,1,1109.5200000000002,1128,1,0,639.61875000000009,2307.5662500000003,5062.1850000000004,1182.2387500000002,1125.3275000000001,1125.3275000000001,"normal otlatma","2016-08-10","Mustafa UZUN"]
[{"$f":"A2+1","v":2},"ERZURUM","OLTU","DAMARLITAŞ",0,19000,8460,2115,890.52631578947364,4230,1057.5,0.5,563.90666666666664,1128,2,-1057.5,333.08541666666667,1182.23875,2572.8241666666668,1182.2387500000002,0,-1057.5,"çok hafif otlatma","2016-08-10","Mustafa UZUN"]
[{"$f":"A3+1","v":3}]

{"sheet":"ARŞİV ÇIKTI","index":5,"n_rows":25,"n_cols":4,"rows_kept":25,"cut":false,"hidden":false,"merged":[]}
["Sıra No",1,2,3]
["İLİ","ERZURUM","ERZURUM"]
["İLÇESİ","OLTU","OLTU"]
["MAHALLESİ/KÖYÜ","DAMARLITAŞ","DAMARLITAŞ"]
["MERA MEVKİİ",0,0]
["MERA ALANI (DA)",19000,19000]
["MERA TOPLAM YAŞ OT ÜRETİMİ (TON)",8460,8460]
["MERA TOPLAM KURU OT ÜRETİMİ (TON)",2115,2115]
["MERA  ORTALAMA YAŞ OT VERİMİ (KG/DA)",890.52631578947364,890.52631578947364]
["MERA DÖNEMİNDE YAŞ OT İHTİYACI (TON)",8460,4230]
["MERA DÖNEMİNDE KURU OT İHTİYACI (TON)",2115,1057.5]
["OTLATMA ORANI",1,0.5]
["TOPLAM HAYVAN SAYISI (HB)",1109.5200000000002,563.90666666666664]
["MERA OTLATMA KAPASİTESİ (HB)",1128,1128]
["ÜRETİMİN İHTİYACI KARŞILAMA ORANI (%)",1,2]
["MERA DÖNEMİNDE KURU KABA YEM AÇIĞI (TON)",0,-1057.5]
["İLKBAHAR VE ANIZ OTLATMA KURU OT ÜRETİMİ (TON)",639.61875000000009,333.08541666666667]
["AHIR DÖNEMİNDE TÜKETİLEN KURUOT (TON)",2307.5662500000003,1182.23875]
["TOPLAM KURU OT İHTİYACI (TON)",5062.1850000000004,2572.8241666666668]
["HASAT EDİLEN HAVADA KURU KABAYEM (TON)",1182.2387500000002,1182.2387500000002]
["AHIRDA KURU KABAYEM AÇIĞI (TON)",1125.3275000000001,0]
["TOPLAM KURU KABAYEM AÇIĞI (TON)",1125.3275000000001,-1057.5]
["KANAAT","normal otlatma","çok hafif otlatma"]
["RAPORU HAZIRLAMA TARİHİ","2016-08-10","2016-08-10"]
["RAPORU HAZIRLAYAN","Mustafa UZUN","Mustafa UZUN"]